Cogmind - Beta 15 @@@ ROGUE MODE // 2025.09.20 @ 00:15:07 Player: shapeshifter Result: Destroyed by C-35 Carver with Carbide Saw Performance ------------- Evolutions (5) 2500 Regions Visited (19) 3800 Robots Destroyed (221) 1105 Value Destroyed (8577) 8577 Prototype IDs (50) 1000 Alien Tech Used (0) 0 Bonus (5269) 5269 TOTAL SCORE: 22251 Bonus ------- High Alert Combat Kills 1280 Follower Combat Kills 289 Entered Garrisons 600 Used RIF Installer 2000 Entered DSFs 500 Aligned with FarCom 300 Met Data Miner 300 Cogmind --------- Core Integrity 0/1000 Matter 12/300 Energy 99/100 System Corruption 0% Temperature Cool (0) Movement Core (50) Location -5/DSF Parts ------- > --- POWER (1) -------- (None) > --- PROPULSION (2) --- (None) > --- UTILITY (12) ----- (None) > --- WEAPON (2) ------- (None) > --- INVENTORY (5) ---- Field Propulsion Drive Launcher Loader Heavy Pick Peak State ------------ > --- POWER ------------ Light Fission Core > --- PROPULSION ------- Gyrokinetic Inverter > --- UTILITY ---------- Lightpack 2.0 Gravity Neutralizer Improved Sensor Array Improved Signal Interpreter Advanced Terrain Scanner Improved Target Analyzer Experimental Core Analyzer System Restoration Module > --- WEAPON ----------- 99-TNT's Nukerbomber > --- INVENTORY -------- Improved Heavy Treads Coolant Injector Improved Trap Scanner Improved Trap Scanner Launcher Loader Launcher Loader ECM Suite Authchip [R/Combat] Relay Coupler [NC] Relay Coupler [Swarmer] Relay Coupler [Grunt] Relay Coupler [Brawler] High-powered Tractor Beam Gatling Laser Remote Datajack Deploy-a-Sentry [Rating: 105] Favorites ----------- Power Reinforced Ion Engine Engine Reinforced Ion Engine Power Core Light Nuclear Core Reactor Heavy Antimatter Reactor Propulsion Light Treads Treads Light Treads Leg Advanced Myomer Leg Wheel Armored Huge Wheel Hover Unit Gyrokinetic Inverter Flight Unit VTOL Module Utility Improved Target Analyzer Device Seismic Detector Storage Huge Storage Unit Processor Improved Target Analyzer Hackware Hacking Suite Protection Light Armor Plating Weapon Autogun Energy Gun Gatling Laser Energy Cannon Advanced Plasma Cannon Ballistic Gun Autogun Ballistic Cannon Assault Cannon Launcher Heavy Missile Launcher Special Weapon Remote Datajack Slashing Weapon Scythe Piercing Weapon Heavy Pick Build | -11 -10 -10 -9 -9 -9 -8 -8 -8 -8 -8 -7 -7 -6 -6 -6 -6 -5 -5 -5 ------- Run | Yrd Mat Min Mat Min Exi Min Mat Gar Mat Gar Fac Gar Fac Low Low Dat Pro Fac DSF Slots Evolved 10 | . . . 2 . . . 2 . . . 2 . 2 . . . . 2 . Power . | . . . . . . . . . . . . . . . . . . . . Propulsion . | . . . . . . . . . . . . . . . . . . . . Utility 10 | . . . 2 . . . 2 . . . 2 . 2 . . . . 2 . Weapon . | . . . . . . . . . . . . . . . . . . . . Parts Attached 150 | 7 2 . 18 1 18 6 11 8 12 7 10 22 10 4 1 . 4 . 9 Power 15 | 1 1 . 3 . 2 1 . 1 2 1 . 3 . . . . . . . Engine 10 | 1 1 . 3 . 1 . . 1 2 1 . . . . . . . . . Core 3 | . . . . . . . . . . . . 3 . . . . . . . Reactor 2 | . . . . . 1 1 . . . . . . . . . . . . . Propulsion 24 | 2 1 . 3 . 6 1 1 . 2 1 . 3 1 1 . . 2 . . Treads 13 | 2 1 . 3 . 4 . . . . . . 2 . 1 . . . . . Leg 3 | . . . . . 2 1 . . . . . . . . . . . . . Wheel 4 | . . . . . . . 1 . 1 1 . 1 . . . . . . . Hover 2 | . . . . . . . . . 1 . . . 1 . . . . . . Flight 2 | . . . . . . . . . . . . . . . . . 2 . . Utility 65 | 2 . . 6 1 4 3 6 4 4 3 7 10 8 2 1 . 2 . 2 Device 25 | 1 . . 2 1 1 1 1 2 1 2 2 6 5 . . . . . . Storage 5 | 1 . . 1 . . 1 1 . . . . . 1 . . . . . . Processor 10 | . . . . . . . 3 . 1 . . 2 2 1 . . . . 1 Hackware 11 | . . . 1 . . . . . 2 1 2 1 . 1 1 . 2 . . Protection 14 | . . . 2 . 3 1 1 2 . . 3 1 . . . . . . 1 Artifact . | . . . . . . . . . . . . . . . . . . . . Weapon 46 | 2 . . 6 . 6 1 4 3 4 2 3 6 1 1 . . . . 7 Energy Gun 2 | . . . . . . . . . . . . 1 1 . . . . . . Energy Cannon 3 | . . . . . . . . . . . . 1 . . . . . . 2 Ballistic Gun 21 | 2 . . 6 . 5 1 4 1 . 1 . 1 . . . . . . . Ballistic Cannon 5 | . . . . . . . . . 3 1 1 . . . . . . . . Launcher 10 | . . . . . 1 . . . 1 . 1 3 . . . . . . 4 Special Weapon 2 | . . . . . . . . 1 . . 1 . . . . . . . . Impact Weapon . | . . . . . . . . . . . . . . . . . . . . Slashing Weapon 2 | . . . . . . . . 1 . . . . . 1 . . . . . Piercing Weapon 1 | . . . . . . . . . . . . . . . . . . . 1 Special Melee Weapon . | . . . . . . . . . . . . . . . . . . . . Unidentified Prototypes 15 | . . . 1 . 5 3 2 . 2 . . 2 . . . . . . . Parts Lost 55 | . . . 1 . 8 2 1 1 1 5 . 15 2 5 2 . 2 . 10 Power 6 | . . . 1 . . . . . . 1 . 3 . 1 . . . . . Propulsion 7 | . . . . . 2 . . . . . . 2 . . . . 1 . 2 Utility 26 | . . . . . 4 1 1 1 . 2 . 6 1 3 1 . 1 . 5 Weapon 16 | . . . . . 2 1 . . 1 2 . 4 1 1 1 . . . 3 Highest Loss Streak 10 | . . . 1 . 6 2 1 1 1 3 . 4 2 2 2 . 2 . 10 To Critical Strikes 3 | . . . . . 3 . . . . . . . . . . . . . . Average Backups 17 | 2 7 8 17 19 18 16 17 18 19 17 18 19 17 13 15 16 15 13 19 Power . | . 1 1 1 1 1 1 . . . . . . . . . . . . . Propulsion 2 | . . 1 3 5 2 1 1 1 1 1 1 1 1 . 2 2 1 1 . Utility 9 | . 4 5 6 4 6 11 11 13 13 10 11 12 12 12 13 14 14 12 18 Weapon 3 | . 1 1 5 8 6 . 3 1 2 2 3 2 2 . . . . . . Tool/Special . | . . . . . . . . . . . . . . . . . . . . Unused Backups 76 | . 1 . 23 2 10 2 4 4 3 . 3 2 2 4 . . . . 16 Power 7 | . . . 3 . 3 1 . . . . . . . . . . . . . Propulsion 9 | . . . 5 . . 1 2 . . . . . . 1 . . . . . Utility 45 | . . . 9 1 4 . 1 4 2 . 2 2 2 2 . . . . 16 Weapon 12 | . 1 . 6 1 3 . . . . . 1 . . . . . . . . Tool/Special 3 | . . . . . . . 1 . 1 . . . . 1 . . . . . Average Slot Usage (%) 83 | . 100 100 95 100 87 79 85 79 80 81 87 73 64 60 54 53 48 52 44 Engine 4 | . 14 14 10 11 7 . . . 1 8 7 . . . . . . . . Reactor 2 | . . . . . 3 11 9 8 7 . . . . . . . . . . Treads 10 | . 28 28 22 22 20 . . . . . . 3 1 3 6 6 1 . . Leg 1 | . . . . . 1 22 6 . . . . . . . . . . . . Wheel 2 | . . . . . . . 5 9 8 9 7 1 . . . . . . . Device 12 | . 14 14 13 22 9 . 9 14 10 13 17 12 20 14 7 6 1 . . Storage 9 | . 14 14 11 11 11 15 12 9 9 9 7 7 6 6 6 6 6 5 4 Processor 9 | . . . . . . . 17 11 10 18 15 21 16 20 20 20 20 17 14 Hackware 2 | . . . 7 . . . . . 5 4 8 1 . . 4 6 7 17 12 Protection 7 | . . . 7 11 11 8 7 9 9 1 6 6 . . . . . . 2 Ballistic Gun 13 | . 28 28 21 22 21 22 18 17 3 1 5 1 . . . . . . . Ballistic Cannon 1 | . . . . . . . . . 13 13 2 . . . . . . . . Launcher 1 | . . . . . . . . . . . 4 6 1 3 . . . . . Peak Build Rating 105 | 7 8 8 19 18 76 76 74 65 74 62 72 80 102 105 83 75 75 68 89 Average Rating 48 | 5 7 8 15 16 38 61 62 63 58 57 67 66 87 91 76 75 65 67 65 On Entrance 52 | . 7 8 8 16 16 76 64 61 63 58 57 72 80 94 80 75 75 67 68 Naked Turns 8 | . . . . . . . . . . . . . . . . . . . 8 Heaviest Build 129 | 13 13 13 62 63 86 86 125 126 129 121 119 125 93 30 9 5 5 5 8 Greatest Support 87 | 40 40 40 40 40 50 50 50 28 28 28 28 87 75 23 11 11 11 8 11 Greatest Overweight (x) 33 | . . . 1 1 1 1 4 4 4 4 4 33 1 2 . . . . 1 Average Overweight (x) 1 | . . . . 1 1 1 3 4 3 3 3 3 . . . . . . . Largest Inventory Capacity 40 | 8 8 8 20 20 20 20 25 25 25 25 25 25 40 40 40 40 40 40 40 Average Capacity 23 | 7 8 8 19 20 20 20 24 25 25 25 25 25 37 40 40 40 40 40 35 Most Carried 26 | 5 8 8 20 20 20 20 25 25 25 25 25 25 25 23 19 18 18 17 26 Average Carried 21 | 2 7 8 17 19 18 19 23 24 24 23 23 24 22 17 18 18 17 16 20 Final Capacity 40 | 8 8 8 20 20 20 20 25 25 25 25 25 25 40 40 40 40 40 40 5 Final Carried 25 | 4 8 8 20 20 20 20 25 25 25 20 25 25 23 19 18 18 15 17 4 Class Distribution -------------------- 40% | Mutant 39% | Scavenger-Mutant 13% | Bothacker-Mutant 4% | Hauler-Mutant Dominant Class ---------------- Mutant | -10/Materials Mutant | -10/Mines Mutant | -9/Materials Scavenger-Mutant | -9/Mines Mutant | -9/Exiles Scavenger-Mutant | -8/Mines Mutant | -8/Materials Mutant | -8/Garrison Bothacker-Mutant | -8/Materials Scavenger-Mutant | -8/Garrison Scavenger-Mutant | -7/Factory Mutant | -7/Garrison Hauler-Mutant | -6/Factory Hauler-Mutant | -6/Lower Caves Hauler-Mutant | -6/Lower Caves Hauler-Mutant | -6/Data Miner Hauler-Sprinter | -5/Proximity Caves Hauler-Sprinter | -5/Factory Hauler-Sprinter | -5/DSF Resources | -11 -10 -10 -9 -9 -9 -8 -8 -8 -8 -8 -7 -7 -6 -6 -6 -6 -5 -5 -5 ----------- Run | Yrd Mat Min Mat Min Exi Min Mat Gar Mat Gar Fac Gar Fac Low Low Dat Pro Fac DSF Matter Collected 10201 | 330 102 14 588 518 1982 421 1459 800 510 952 471 1509 33 292 220 . . . . Remotely 12 | . . . . . . . . . . . . 12 . . . . . . . Salvage Created 7569 | 140 210 22 953 115 549 475 1500 663 477 287 267 1577 23 49 . . . . 262 Parts 492 | 12 12 4 70 7 74 17 83 47 35 22 17 78 2 9 . . . . 3 Haulers Intercepted 12 | . 1 . 5 . . . 5 . 1 . . . . . . . . . . Recyclers Shooed 7 | 1 . . 2 . . 1 2 . . . 1 . . . . . . . . Parts Field Recycled . | . . . . . . . . . . . . . . . . . . . . Retrieved Matter . | . . . . . . . . . . . . . . . . . . . . Parts Self-Destructed 8 | . . . . . . . . . . . . . . 3 5 . . . . Prevented . | . . . . . . . . . . . . . . . . . . . . Kills | -11 -10 -10 -9 -9 -9 -8 -8 -8 -8 -8 -7 -7 -6 -6 -6 -6 -5 -5 -5 ------- Run | Yrd Mat Min Mat Min Exi Min Mat Gar Mat Gar Fac Gar Fac Low Low Dat Pro Fac DSF Combat Hostiles Destroyed 165 | . 2 2 15 3 6 2 25 21 10 15 9 45 . 10 . . . . . Guns 77 | . 2 2 15 3 1 2 25 21 3 . 1 2 . . . . . . . Cannons 26 | . . . . . . . . . 7 15 1 3 . . . . . . . AOE 62 | . . . . . 5 . . . . . 7 40 . 10 . . . . . Classes Destroyed 20 | 2 4 1 2 . 3 . 3 3 . 1 . . . 1 . . . . . Worker 8 | . . . 1 . . 1 5 . . . . . 1 . . . . . . Builder 2 | . . . . . . . 1 . 1 . . . . . . . . . . Tunneler 3 | 3 . . . . . . . . . . . . . . . . . . . Hauler 12 | . 1 . 5 . . . 5 . 1 . . . . . . . . . . Recycler 8 | 1 . . 2 . . 4 . . . . 1 . . . . . . . . Operator 4 | . 1 . . . . . . . 1 . 2 . . . . . . . . Turret 1 | . . . . . 1 . . . . . . . . . . . . . . Watcher 12 | . 2 . 3 . . . 3 . 2 . . 2 . . . . . . . Swarmer 62 | . . 2 7 . . . 7 10 3 6 7 14 . 6 . . . . . Cutter 5 | . . . . . . . . 2 . . . 3 . . . . . . . Grunt 49 | . 2 . 3 3 . 2 11 2 3 4 . 19 . . . . . . . Brawler 4 | . . . . . . . 1 3 . . . . . . . . . . . Duelist 4 | . . . . . . . . 2 1 . . 1 . . . . . . . Sentry 19 | . . . 5 . . . 4 1 2 . 1 6 . . . . . . . Specialist 1 | . . . . . . . . . . 1 . . . . . . . . . Hunter 8 | . . . . . . . 2 . 1 1 . 3 . 1 . . . . . Programmer 5 | . . . . . . . . 1 . 3 1 . . . . . . . . Zionite 8 | . . . . . 8 . . . . . . . . . . . . . . Master Thief 3 | . . . . . . . . . . . . . . 3 . . . . . Assembled 5 | . . . . . 5 . . . . . . . . . . . . . . Best Kill Streak 19 | 2 1 2 3 3 5 5 8 9 3 3 4 19 1 4 . . . . . Combat Bots Only 19 | . 1 2 3 3 5 2 5 9 3 3 4 19 . 4 . . . . . Max Kills in Single Turn 4 | 1 1 1 1 1 2 1 2 1 1 1 3 4 1 4 . . . . . Gunslinging . | . . . . . . . . . . . . . . . . . . . . Exploded 4 | . . . . . 2 . . . . . 3 4 . 4 . . . . . Melee . | . . . . . . . . . . . . . . . . . . . . Uniques/NPCs Destroyed 4 | . . . . . 4 . . . . . . . . . . . . . . 8R-AWN (-9/Exiles) EX-DEC (-9/Exiles) EX-BIN (-9/Exiles) EX-HEX (-9/Exiles) Combat | -11 -10 -10 -9 -9 -9 -8 -8 -8 -8 -8 -7 -7 -6 -6 -6 -6 -5 -5 -5 -------- Run | Yrd Mat Min Mat Min Exi Min Mat Gar Mat Gar Fac Gar Fac Low Low Dat Pro Fac DSF Hostile Shots Fired 1327 | . 17 9 79 9 115 56 107 120 38 121 97 386 39 18 8 . 19 . 89 Missed 413 | . 7 6 27 4 32 4 33 34 8 28 35 142 16 4 2 . 7 . 24 Hits 914 | . 10 3 52 5 83 52 74 86 30 93 62 244 23 14 6 . 12 . 65 Melee 48 | . . . . . . . . 18 . . . 4 . 3 . . . . 23 Projectile 866 | . 10 3 52 5 83 52 74 68 30 93 62 240 23 11 6 . 12 . 42 AOE 50 | . . . . . . 48 . . . . . . . . . . . . 2 Critical Strikes 69 | . 1 . 7 . 24 . 4 7 . 4 . 3 . . 1 . . . 18 Actively Blocked 2 | . . . . . . . . . . . . . . . . . . . 2 Part Disruptions 1 | . . . . . . . . . . 1 . . . . . . . . . Damage Taken 12661 | . 142 26 607 53 1385 635 1041 1042 337 1233 393 2535 335 562 113 . 258 . 1964 Core 2833 | . 26 . 100 12 137 124 123 120 32 234 47 453 77 148 18 . 163 . 1019 Absorbed by Shields 499 | . . . . 20 27 . . 28 . . 172 252 . . . . . . . Redirected to Shielding 165 | . . . . . . . 61 . . . . . . . . . . . 104 Ignored by Resistances 2840 | . . . . . . 2840 . . . . . . . . . . . . . Core Remaining (%) 47 | 100 . 89 . . . 6 . . . 7 . 28 . . . . 52 . . Volleys Fired 749 | 10 20 5 66 8 118 19 139 78 44 70 31 114 6 6 3 . . . 12 Largest 2 | 2 2 2 2 2 2 2 2 2 2 2 2 2 1 1 1 . . . 2 Hottest 210 | 40 40 40 46 46 58 58 50 50 74 74 79 98 60 30 5 . . . 210 Shots Fired 1268 | 20 40 10 132 16 202 38 278 151 84 108 39 122 6 6 3 . . . 13 Gun 973 | 20 40 10 132 16 181 38 278 146 26 6 20 54 6 . . . . . . Cannon 182 | . . . . . . . . . 56 100 10 14 . . . . . . 2 Launcher 92 | . . . . . 21 . . . . . 7 48 . 5 . . . . 11 Special 21 | . . . . . . . . 5 2 2 2 6 . 1 3 . . . . Kinetic 1088 | 20 40 10 132 16 181 38 278 146 82 106 30 9 . . . . . . . Thermal 61 | . . . . . . . . . . . . 59 . . . . . . 2 Explosive 92 | . . . . . 21 . . . . . 7 48 . 5 . . . . 11 Electromagnetic 6 | . . . . . . . . . . . . . 6 . . . . . . Robot Hit Streak 34 | 3 5 2 12 5 15 9 17 6 7 8 10 34 2 4 2 . . . 7 Robot Miss Streak 8 | 2 3 4 3 3 8 1 5 4 7 5 4 3 1 3 1 . . . 2 Penetration Max 1 | . . . . . 1 1 . . . . 1 . . . . . . . . Secondary Targets 9 | . . . 1 . . . . 8 . . . . . . . . . . . Max Gunslinging Chain 1 | . . . 1 . . . . 1 . . . . . . . . . . . Shots Hit Robots 742 | 11 23 3 88 11 106 33 175 75 43 50 17 90 3 3 2 . . . 9 Core Hits 461 | 5 11 2 41 6 49 15 63 33 21 21 20 148 3 12 . . . . 11 Critical Kills 24 | . . . 3 . 1 7 5 4 1 . 1 2 . . . . . . . Critical Parts Destroyed 27 | . 1 . 1 . 4 1 12 1 . 2 3 2 . . . . . . . Critical Strikes 68 | . 1 . 4 . 6 10 17 5 7 9 5 4 . . . . . . . Destroy 54 | . 1 . 4 . 6 10 17 5 1 2 4 4 . . . . . . . Blast 14 | . . . . . . . . . 6 7 1 . . . . . . . . Melee Attacks 2 | . . . . . . . . 2 . . . . . . . . . . . Impact . | . . . . . . . . . . . . . . . . . . . . Slashing 2 | . . . . . . . . 2 . . . . . . . . . . . Piercing . | . . . . . . . . . . . . . . . . . . . . Sneak Attacks . | . . . . . . . . . . . . . . . . . . . . Combat Hostiles . | . . . . . . . . . . . . . . . . . . . . Follow-up Attacks . | . . . . . . . . . . . . . . . . . . . . Damage Inflicted 20842 | 140 285 50 1345 174 2335 495 2940 1356 942 1164 620 6128 62 1838 . . . . 968 Guns 10241 | 140 285 50 1345 174 1666 495 2940 1356 252 16 78 1382 62 . . . . . . Cannons 2275 | . . . . . . . . . 690 1148 103 334 . . . . . . . Explosions 8317 | . . . . . 669 . . . . . 439 4403 . 1838 . . . . 968 Melee . | . . . . . . . . . . . . . . . . . . . . Ramming 9 | . . . . . . . . . . . . 9 . . . . . . . Kinetic 10765 | 140 285 50 1345 174 1666 495 2940 1356 942 1164 181 27 . . . . . . . Thermal 1689 | . . . . . . . . . . . . 1689 . . . . . . . Explosive 8317 | . . . . . 669 . . . . . 439 4403 . 1838 . . . . 968 Electromagnetic 62 | . . . . . . . . . . . . . 62 . . . . . . Impact . | . . . . . . . . . . . . . . . . . . . . Slashing . | . . . . . . . . . . . . . . . . . . . . Piercing . | . . . . . . . . . . . . . . . . . . . . Highest Corruption 4 | . . . . . 1 1 . 2 2 4 . . 1 . . . . . . Average Corruption 1 | . . . . . 1 1 . 1 1 3 . . 1 . . . . . . Corruption Purged 3 | . . . . . . . . . 2 . . . 1 . . . . . . Corruption Blocked . | . . . . . . . . . . . . . . . . . . . . Effects 38 | . . . . . 16 . . 11 1 10 . . . . . . . . . Message Errors 7 | . . . . . 3 . . 2 . 2 . . . . . . . . . Matter Fused 11 | . . . . . 4 . . 3 1 3 . . . . . . . . . Heat Flow Errors 3 | . . . . . 2 . . . . 1 . . . . . . . . . Energy Discharges 5 | . . . . . 4 . . . . 1 . . . . . . . . . Parts Rejected 1 | . . . . . . . . . . 1 . . . . . . . . . Data Loss (minor) 6 | . . . . . 2 . . 4 . . . . . . . . . . . Data Loss (major) 2 | . . . . . . . . 1 . 1 . . . . . . . . . Misfires 3 | . . . . . 1 . . 1 . 1 . . . . . . . . . Overload Shots . | . . . . . . . . . . . . . . . . . . . . Overflow Damage 591 | . . . . . . . . . 14 10 . 154 . 409 . . . . 4 Projectiles 24 | . . . . . . . . . 14 10 . . . . . . . . . Explosions 567 | . . . . . . . . . . . . 154 . 409 . . . . 4 Melee . | . . . . . . . . . . . . . . . . . . . . Knockbacks 18 | . . . . . . . . . 8 10 . . . . . . . . . Impact . | . . . . . . . . . . . . . . . . . . . . Kinetic 16 | . . . . . . . . . 8 8 . . . . . . . . . Secondary 2 | . . . . . . . . . . 2 . . . . . . . . . Self-Inflicted Damage 912 | . . . . . 40 . . . . . . 453 . 389 . . . . 30 Shots 22 | . . . . . 1 . . . . . . 14 . 6 . . . . 1 Rammed 3 | . . . . . . . . . . . . 3 . . . . . . . Targets Rammed 3 | . . . . . . . . . . . . 3 . . . . . . . Kicked . | . . . . . . . . . . . . . . . . . . . . Crushed . | . . . . . . . . . . . . . . . . . . . . Highest Temperature 408 | . 20 . 62 40 241 . 47 408 19 195 6 126 66 . 4 . . . 36 Average Temperature 65 | . 6 . 20 21 79 . 22 136 10 120 2 25 26 . 4 . . . 24 Received Heat Transfer 2207 | . 102 . 285 26 45 27 432 126 72 117 100 611 108 . 72 . 84 . . Effects 9 | . . . . . 4 . . 5 . . . . . . . . . . . Energy Bleed 1 | . . . . . . . . 1 . . . . . . . . . . . Interference 7 | . . . . . 4 . . 3 . . . . . . . . . . . Damage (minor) 1 | . . . . . . . . 1 . . . . . . . . . . . Siege Activations . | . . . . . . . . . . . . . . . . . . . . Martial Activations . | . . . . . . . . . . . . . . . . . . . . Shielding Activations . | . . . . . . . . . . . . . . . . . . . . Robots Disrupted . | . . . . . . . . . . . . . . . . . . . . Combat Hostiles . | . . . . . . . . . . . . . . . . . . . . Robots Corrupted . | . . . . . . . . . . . . . . . . . . . . Combat Hostiles . | . . . . . . . . . . . . . . . . . . . . Parts Fried . | . . . . . . . . . . . . . . . . . . . . Impact Corruptions . | . . . . . . . . . . . . . . . . . . . . Robots Melted . | . . . . . . . . . . . . . . . . . . . . Combat Hostiles . | . . . . . . . . . . . . . . . . . . . . Parts Melted 2 | . . . . . . . . . . . . 2 . . . . . . . Heat Transferred 3575 | . . . . . . . . . . . . 3575 . . . . . . . Parts Sabotaged . | . . . . . . . . . . . . . . . . . . . . Parts Stolen 2 | . . . . . . . . . . . . . . 2 . . . . . Parts Stripped . | . . . . . . . . . . . . . . . . . . . . Power Chain Reactions . | . . . . . . . . . . . . . . . . . . . . Alert | -11 -10 -10 -9 -9 -9 -8 -8 -8 -8 -8 -7 -7 -6 -6 -6 -6 -5 -5 -5 ------- Run | Yrd Mat Min Mat Min Exi Min Mat Gar Mat Gar Fac Gar Fac Low Low Dat Pro Fac DSF Maximum Alert Level 5 | . . . 1 . . . 2 3 2 3 2 5 4 . . . . . . Low Security (%) 36 | 100 100 100 82 100 . 100 58 . . . . . . . . . . 100 100 Level 1 20 | . . . 17 . . . 40 20 71 52 43 . . . . . . . . Level 2 13 | . . . . . . . 1 27 28 37 56 11 . . . . . . . Level 3 8 | . . . . . . . . 52 . 9 . 11 . . . . . . . Level 4 10 | . . . . . . . . . . . . 31 100 . . . . . . Level 5 11 | . . . . . . . . . . . . 44 . . . . . . . High Security . | . . . . . . . . . . . . . . . . . . . . Max Security . | . . . . . . . . . . . . . . . . . . . . Peak Influence 3028 | 5 45 30 243 90 . 32 420 1048 510 725 598 3028 1589 . . . . 91 105 Initial 1589 | . . . . 90 . . . 273 510 221 380 360 1589 . . . . 91 67 Average 619 | 1 5 4 62 16 . 10 154 644 378 434 419 1642 1531 . . . . 91 77 Influence Increases 7481 | 20 109 45 528 152 . 70 827 785 348 574 565 2898 65 160 44 . 165 5 121 Destroy 0b10 Robot/C 3300 | . 40 40 300 120 . 40 500 420 200 300 240 920 . 140 40 . . . . Destroy 0b10 Robot/NC 295 | 20 20 . 55 . . 25 70 . 25 . 15 40 5 . . . . . 20 Destroy Leader 484 | . 16 . 106 20 . . 136 20 66 20 50 30 . 20 . . . . . Allied During Kill 34 | . . . . 12 . . . . 2 1 10 5 . . 4 . . . . Successful Hack 97 | . 18 5 6 . . . 25 . 8 . 9 21 . . . . . 5 . Select Force Hacks 50 | . . . . . . . . . . . 50 . . . . . . . . Disable Machine 210 | . . . . . . . 15 . 15 . 105 60 15 . . . . . . Anti-Garrison Action 2000 | . . . . . . . . 300 . 150 . 1550 . . . . . . . Destroy Structure 531 | . . . 1 . . 5 6 15 17 43 86 272 . . . . . . 86 Lose Combat Pursuer 480 | . 15 . 60 . . . 75 30 15 60 . . 45 . . . 165 . 15 Influence Decreases 7393 | 20 109 45 297 383 . 68 409 157 1056 189 775 385 1589 814 292 602 20 54 129 Entered New Map 4291 | . . . . 141 . . 2 147 538 119 345 155 1439 558 162 602 . 54 29 Time Decay 2447 | 20 109 45 287 222 . 53 407 . 428 . 410 . 130 206 110 . 20 . . Lost Part 435 | . . . 10 . . 15 . 10 10 50 . 150 20 50 20 . . . 100 Lost Ally 220 | . . . . 20 . . . . 80 20 20 80 . . . . . . . Squads Dispatched 15 | . 1 . 1 . . . 2 . . . 6 . 2 . . . . . 3 Investigation 4 | . . . . . . . 1 . . . 3 . . . . . . . . Extermination 3 | . . . . . . . . . . . 2 . 1 . . . . . . Reinforcement 8 | . 1 . 1 . . . 1 . . . 1 . 1 . . . . . 3 Assault . | . . . . . . . . . . . . . . . . . . . . Garrison . | . . . . . . . . . . . . . . . . . . . . Intercept . | . . . . . . . . . . . . . . . . . . . . Searches Triggered . | . . . . . . . . . . . . . . . . . . . . Construction Impeded . | . . . . . . . . . . . . . . . . . . . . Haulers Reinforced . | . . . . . . . . . . . . . . . . . . . . Active Scanning Responses . | . . . . . . . . . . . . . . . . . . . . Cargo Convoy Interrupts . | . . . . . . . . . . . . . . . . . . . . Stealth | -11 -10 -10 -9 -9 -9 -8 -8 -8 -8 -8 -7 -7 -6 -6 -6 -6 -5 -5 -5 --------- Run | Yrd Mat Min Mat Min Exi Min Mat Gar Mat Gar Fac Gar Fac Low Low Dat Pro Fac DSF Distress Signals 8 | . . 1 3 . . . 3 . . . . 1 . . . . . . . Communications Jammed 27 | . . . . . . . . . 27 . . . . . . . . . . Distress Signals 27 | . . . . . . . . . 27 . . . . . . . . . . Times Spotted 285 | . 12 2 28 6 19 4 44 25 21 18 14 49 8 12 4 . 11 . 8 Peak Tracking Total 11 | . 3 2 3 3 11 4 5 4 4 4 4 9 3 4 4 . 6 . 7 Tactical Retreats 24 | . 1 . 4 . 5 . 3 2 1 2 . . 2 . . . 3 . 1 Traps | -11 -10 -10 -9 -9 -9 -8 -8 -8 -8 -8 -7 -7 -6 -6 -6 -6 -5 -5 -5 ------- Run | Yrd Mat Min Mat Min Exi Min Mat Gar Mat Gar Fac Gar Fac Low Low Dat Pro Fac DSF Traps Triggered 16 | . . . . . . . 1 4 . 1 . 8 2 . . . . . . Indirectly . | . . . . . . . . . . . . . . . . . . . . Trap Hack Attempts . | . . . . . . . . . . . . . . . . . . . . Triggered . | . . . . . . . . . . . . . . . . . . . . Disarmed 5 | . . . . . . . . . 5 . . . . . . . . . . Reprogrammed . | . . . . . . . . . . . . . . . . . . . . Reused . | . . . . . . . . . . . . . . . . . . . . Traps Extracted . | . . . . . . . . . . . . . . . . . . . . Installed . | . . . . . . . . . . . . . . . . . . . . Triggered . | . . . . . . . . . . . . . . . . . . . . Most Traps Carried 4 | . . . . 4 4 4 4 . . . . . . . . . . . . Machines | -11 -10 -10 -9 -9 -9 -8 -8 -8 -8 -8 -7 -7 -6 -6 -6 -6 -5 -5 -5 ---------- Run | Yrd Mat Min Mat Min Exi Min Mat Gar Mat Gar Fac Gar Fac Low Low Dat Pro Fac DSF Machines Disabled 38 | . . . . . 11 . 1 4 1 4 7 9 1 . . . . . . Max in Single Turn 3 | . . . . . 1 . 1 1 1 2 3 1 1 . . . . . . Garrison Relay 11 | . . . . . . . . 4 . 2 . 5 . . . . . . . Phase Generator 1 | . . . . . . . . . . 1 . . . . . . . . . Machines Repaired . | . . . . . . . . . . . . . . . . . . . . Machines Dismantled . | . . . . . . . . . . . . . . . . . . . . Machines Sabotaged . | . . . . . . . . . . . . . . . . . . . . Overloaded Fab Kills . | . . . . . . . . . . . . . . . . . . . . Hacking | -11 -10 -10 -9 -9 -9 -8 -8 -8 -8 -8 -7 -7 -6 -6 -6 -6 -5 -5 -5 --------- Run | Yrd Mat Min Mat Min Exi Min Mat Gar Mat Gar Fac Gar Fac Low Low Dat Pro Fac DSF Machines Accessed 50 | . 4 1 7 1 2 . 7 3 6 1 8 2 2 1 . 4 . 1 . Terminals 32 | . 3 1 5 . . . 6 3 5 1 3 2 2 . . . . 1 . Fabricators 2 | . . . . . . . . . . . 2 . . . . . . . . Repair Stations . | . . . . . . . . . . . . . . . . . . . . Recycling Units 1 | . 1 . . . . . . . . . . . . . . . . . . Scanalyzers 4 | . . . 2 . . . . . . . 2 . . . . . . . . Garrison Access 3 | . . . . . . . 1 . 1 . 1 . . . . . . . . Total Hacks 129 | . 11 1 19 1 2 . 23 3 12 1 16 5 2 1 . 27 . 5 . Successful 91 | . 8 1 12 1 2 . 15 2 8 . 10 2 1 1 . 27 . 1 . Failed 38 | . 3 . 7 . . . 8 1 4 1 6 3 1 . . . . 4 . Catastrophic 5 | . . . . . . . . 1 . 1 1 1 1 . . . . . . Database Lockouts . | . . . . . . . . . . . . . . . . . . . . Manual 55 | . 8 . 12 . 1 . 21 . 6 . 7 . . . . . . . . Terminals 80 | . 10 1 14 . . . 22 3 11 1 6 5 2 . . . . 5 . Fabricators 4 | . . . . . . . . . . . 4 . . . . . . . . Repair Stations . | . . . . . . . . . . . . . . . . . . . . Recycling Units 1 | . 1 . . . . . . . . . . . . . . . . . . Scanalyzers 10 | . . . 5 . . . . . . . 5 . . . . . . . . Garrison Access 3 | . . . . . . . 1 . 1 . 1 . . . . . . . . Terminal Hacks 49 | . 2 1 . 1 2 . 6 2 3 . . 2 1 1 . 27 . 1 . Record 9 | . . . . . 1 . . . . . . . . . . 8 . . . Part Schematic 10 | . . . . . . . . . . . . . . . . 10 . . . Robot Schematic 6 | . . . . . . . . . . . . . . . . 6 . . . Prototype ID Bank 3 | . . . . . . . . . . . . . . . . 3 . . . Open Door 3 | . . . . 1 . . . . . . . 1 . 1 . . . . . Open DSF 2 | . . . . . . . . . . . . . 1 . . . . 1 . Level Access Points 1 | . . . . . . . 1 . . . . . . . . . . . . Branch Access Points 3 | . 1 . . . . . 1 . 1 . . . . . . . . . . Emergency Access Points 1 | . . . . . . . . 1 . . . . . . . . . . . Disarm Traps 1 | . . . . . . . . . 1 . . . . . . . . . . Zone Layout 7 | . 1 1 . . . . 4 . 1 . . . . . . . . . . Garrison Registry 1 | . . . . . . . . 1 . . . . . . . . . . . Patrol Navigation 1 | . . . . . . . . . . . . 1 . . . . . . . Proto ID Catalog 1 | . . . . . 1 . . . . . . . . . . . . . . Fabricator Hacks 2 | . . . . . . . . . . . 2 . . . . . . . . Network Status 1 | . . . . . . . . . . . 1 . . . . . . . . Load Schematic 1 | . . . . . . . . . . . 1 . . . . . . . . Repair Station Hacks . | . . . . . . . . . . . . . . . . . . . . Recycling Unit Hacks 1 | . 1 . . . . . . . . . . . . . . . . . . Retrieve Components 1 | . 1 . . . . . . . . . . . . . . . . . . Scanalyzer 7 | . . . 5 . . . . . . . 2 . . . . . . . . Insert Component 3 | . . . 2 . . . . . . . 1 . . . . . . . . Analyze 4 | . . . 3 . . . . . . . 1 . . . . . . . . Garrison Access Hacks 3 | . . . . . . . 1 . 1 . 1 . . . . . . . . Unlock Access 3 | . . . . . . . 1 . 1 . 1 . . . . . . . . Unauthorized Hacks 29 | . 5 . 7 . . . 8 . 4 . 5 . . . . . . . . Terminals 26 | . 5 . 7 . . . 8 . 4 . 2 . . . . . . . . Botnet 10 | . 2 . 3 . . . 3 . 1 . 1 . . . . . . . . Skim 16 | . 3 . 4 . . . 5 . 3 . 1 . . . . . . . . Fabricators 2 | . . . . . . . . . . . 2 . . . . . . . . Download 1 | . . . . . . . . . . . 1 . . . . . . . . Recompile 1 | . . . . . . . . . . . 1 . . . . . . . . Repair Stations . | . . . . . . . . . . . . . . . . . . . . Recycling Units . | . . . . . . . . . . . . . . . . . . . . Scanalyzers 1 | . . . . . . . . . . . 1 . . . . . . . . Extract 1 | . . . . . . . . . . . 1 . . . . . . . . Garrison Access . | . . . . . . . . . . . . . . . . . . . . Data Cores Recovered 3 | . 1 . . . . . . . 1 . 1 . . . . . . . . Used . | . . . . . . . . . . . . . . . . . . . . Hacking Detections 31 | . 4 . 6 . . . 5 1 4 1 5 2 2 . . . . 1 . Full Trace Events . | . . . . . . . . . . . . . . . . . . . . Feedback Events . | . . . . . . . . . . . . . . . . . . . . Feedback Blocked . | . . . . . . . . . . . . . . . . . . . . Robot Schematics Acquired 7 | . . . . . . . . . . . 1 . . . . 6 . . . Robots Built . | . . . . . . . . . . . . . . . . . . . . Authchips . | . . . . . . . . . . . . . . . . . . . . Time . | . . . . . . . . . . . . . . . . . . . . Total Robot Build Rating . | . . . . . . . . . . . . . . . . . . . . Part Schematics Acquired 22 | . . . 2 . . . . . . . 10 . . . . 10 . . . Parts Built . | . . . . . . . . . . . . . . . . . . . . Authchips . | . . . . . . . . . . . . . . . . . . . . Time . | . . . . . . . . . . . . . . . . . . . . Total Part Build Rating . | . . . . . . . . . . . . . . . . . . . . Parts Repaired . | . . . . . . . . . . . . . . . . . . . . Time . | . . . . . . . . . . . . . . . . . . . . Parts Recycled . | . . . . . . . . . . . . . . . . . . . . Recycled Matter . | . . . . . . . . . . . . . . . . . . . . Retrieved Matter . | . . . . . . . . . . . . . . . . . . . . Retrieved Components . | . . . . . . . . . . . . . . . . . . . . Parts Scanalyzed 3 | . . . 2 . . . . . . . 1 . . . . . . . . Part Schematics Acquired 2 | . . . 2 . . . . . . . . . . . . . . . . Parts Damaged . | . . . . . . . . . . . . . . . . . . . . Bothacking | -11 -10 -10 -9 -9 -9 -8 -8 -8 -8 -8 -7 -7 -6 -6 -6 -6 -5 -5 -5 ------------ Run | Yrd Mat Min Mat Min Exi Min Mat Gar Mat Gar Fac Gar Fac Low Low Dat Pro Fac DSF Used RIF Installer 4 | . . . . . . . . 2 . 1 . 1 . . . . . . . Hotswap 1 | . . . . . . . . . . 1 . . . . . . . . . Patrol Navigation 1 | . . . . . . . . . . . . 1 . . . . . . . Structural Interface 1 | . . . . . . . . 1 . . . . . . . . . . . Robots Hacked 9 | . . . . . . . . . 1 2 1 3 . 1 1 . . . . Non-combat . | . . . . . . . . . . . . . . . . . . . . Combat 9 | . . . . . . . . . 1 2 1 3 . 1 1 . . . . Robot Hacks Applied 11 | . . . . . . . . . 2 2 2 3 . 1 1 . . . . find_garrison 2 | . . . . . . . . . 1 . 1 . . . . . . . . amplify_resonance 3 | . . . . . . . . . . . . 1 . 1 1 . . . . overwrite_iff 2 | . . . . . . . . . . 1 . 1 . . . . . . . formatsys_high 4 | . . . . . . . . . 1 1 1 1 . . . . . . . Relay Couplers Released 48 | . . . . . . . . 21 . 8 . 19 . . . . . . . Machine Destruction 45 | . . . . . . . . 18 . 8 . 19 . . . . . . . Programmers 3 | . . . . . . . . 3 . . . . . . . . . . . Attached 8 | . . . . . . . . . 1 1 1 1 . 1 1 . 2 . . Fabnet Peak Effective % . | . . . . . . . . . . . . . . . . . . . . Robots Rewired 6 | . . . . . . . . 3 . . . 3 . . . . . . . Allies Hacked . | . . . . . . . . . . . . . . . . . . . . Hacks Repelled . | . . . . . . . . . . . . . . . . . . . . Allies | -11 -10 -10 -9 -9 -9 -8 -8 -8 -8 -8 -7 -7 -6 -6 -6 -6 -5 -5 -5 -------- Run | Yrd Mat Min Mat Min Exi Min Mat Gar Mat Gar Fac Gar Fac Low Low Dat Pro Fac DSF Total Allies 15 | . . . . 2 . . . 3 1 2 1 6 . . . . . . . Largest Group 3 | . . . . 2 1 . . 3 3 1 1 3 . . . . . . . Highest-Rated Group 48 | . . . . 43 31 . . 15 15 16 32 48 . . . . . . . Highest-Rated Ally 32 | . . . . 31 31 . . 5 15 16 32 25 . . . . . . . Total Orders . | . . . . . . . . . . . . . . . . . . . . Ally Attacks 70 | . . . . 16 . . . . 13 3 6 30 . . 2 . . . . Total Damage 1078 | . . . . 212 . . . . 78 48 162 468 . . 110 . . . . Kills 9 | . . . . 3 . . . . . . 3 1 . . 2 . . . . Allies Corrupted . | . . . . . . . . . . . . . . . . . . . . Allies Melted . | . . . . . . . . . . . . . . . . . . . . Turrets Deployed 1 | . . . . . . . . . . . . . . . 1 . . . . Intel | -11 -10 -10 -9 -9 -9 -8 -8 -8 -8 -8 -7 -7 -6 -6 -6 -6 -5 -5 -5 ------- Run | Yrd Mat Min Mat Min Exi Min Mat Gar Mat Gar Fac Gar Fac Low Low Dat Pro Fac DSF Active Infowar (turns) 9304 | 25 620 228 1661 1475 1727 . . 1093 166 538 980 536 152 101 . . . . 2 Optics 2 | . . . . . . . . . . . . . . . . . . . 2 Sensors 190 | . . . . . . . . . . . . . 89 101 . . . . . Terrain 154 | . . . . . . . . . . . . . 152 2 . . . . . Structural 408 | . . . 408 . . . . . . . . . . . . . . . . Traps 1 | . . . . . . . . . . 1 . . . . . . . . . Seismic 5736 | 25 620 228 1661 1475 1727 . . . . . . . . . . . . . . T.N.C. 4 | . . . . . . . . . . . . 4 . . . . . . . Jamming 3309 | . . . . . . . . 1093 166 538 980 532 . . . . . . . Robot Analysis Total . | . . . . . . . . . . . . . . . . . . . . Derelict Logs Recovered 4 | . . . . 1 . . . . . . . . . 1 2 . . . . Drone Launches . | . . . . . . . . . . . . . . . . . . . . Drone Recoveries . | . . . . . . . . . . . . . . . . . . . . Exploration | -11 -10 -10 -9 -9 -9 -8 -8 -8 -8 -8 -7 -7 -6 -6 -6 -6 -5 -5 -5 ------------- Run | Yrd Mat Min Mat Min Exi Min Mat Gar Mat Gar Fac Gar Fac Low Low Dat Pro Fac DSF Turns Passed 18973 | 189 620 228 1661 1475 3849 149 1779 1293 1059 798 980 3674 268 427 226 70 96 6 126 Spaces Moved 8557 | 102 342 134 561 571 1441 38 742 613 532 387 545 1250 292 308 242 78 242 12 125 Core 99 | 19 . . . . . . . . . . . 39 . . . . . . 41 Treads 3753 | 83 342 134 561 571 1328 . . . . . . 721 13 . . . . . . Legs 378 | . . . . . 113 38 227 . . . . . . . . . . . . Wheels 3082 | . . . . . . . 515 613 532 387 545 490 . . . . . . . Hover 961 | . . . . . . . . . . . . . 279 308 242 78 29 . 25 Flight 284 | . . . . . . . . . . . . . . . . . 213 12 59 Fastest Speed 32 | 50 160 160 160 240 200 200 145 160 145 145 145 145 70 70 90 90 32 32 32 Average Speed 185 | 139 160 160 239 240 236 200 185 160 159 146 153 252 77 116 90 90 37 32 51 Slowest Speed 1700 | 160 160 160 240 240 240 200 270 160 160 160 160 1700 240 170 90 90 90 32 100 Overloaded Moves . | . . . . . . . . . . . . . . . . . . . . Propulsion Burnouts . | . . . . . . . . . . . . . . . . . . . . Robots Hopped . | . . . . . . . . . . . . . . . . . . . . Potential Cave-ins . | . . . . . . . . . . . . . . . . . . . . Cave-ins Triggered . | . . . . . . . . . . . . . . . . . . . . Exploration Rate (%) 52 | 4 46 50 49 98 90 11 73 67 42 51 17 89 6 49 45 68 51 . 88 Regions Visited 19 Branch Regions 8 Pre-discovered Areas 3 | . . . . 1 1 . . . . . . . . . . 1 . . . Known Exits Taken 10 | . 1 . . . . . 1 . 1 . 1 . 1 1 1 1 1 1 . Unknown Exits Taken 6 | 1 . 1 1 1 1 1 . . . . . . . . . . . . . Scrap Searched 4 | . . . . 2 . . . . . . . . . 2 . . . . . Spaces Dug 83 | . . . . . . . . . . . . 54 . 29 . . . . . Terrain Destroyed 885 | . . . . . 39 10 . . 14 75 95 430 . 151 . . . . 71 Melee . | . . . . . . . . . . . . . . . . . . . . Projectile 36 | . . . . . 9 9 . . 14 . 2 1 . . . . . . 1 AOE 845 | . . . . . 28 . . . . 75 92 429 . 151 . . . . 70 Terrain Rammed . | . . . . . . . . . . . . . . . . . . . . Walls Destroyed . | . . . . . . . . . . . . . . . . . . . . Machines Disabled . | . . . . . . . . . . . . . . . . . . . . Actions | -11 -10 -10 -9 -9 -9 -8 -8 -8 -8 -8 -7 -7 -6 -6 -6 -6 -5 -5 -5 --------- Run | Yrd Mat Min Mat Min Exi Min Mat Gar Mat Gar Fac Gar Fac Low Low Dat Pro Fac DSF Total 10597 | 128 376 138 767 664 1706 74 980 833 672 512 649 1634 331 373 249 77 245 13 176 Wait 626 | . 4 . 33 78 42 4 54 71 46 29 39 179 . 38 2 . . . 7 Move 8541 | 101 341 133 560 570 1440 37 742 612 532 386 545 1249 291 307 241 77 241 11 125 Hop . | . . . . . . . . . . . . . . . . . . . . Pick Up 228 | 10 6 . 49 3 40 4 15 12 11 7 14 16 11 9 1 . . 2 18 Fast Attach 37 | 1 . . 2 . . 2 4 6 9 . 2 10 1 . . . . . . Attach 97 | 6 . . 7 . 11 2 1 3 6 9 5 14 11 8 1 . 3 . 10 Detach 15 | . . . 1 . 2 . 1 . 2 1 . 2 4 1 . . . . 1 Swap 64 | . 2 . 9 2 17 3 8 6 3 4 4 4 1 . . . 1 . . Drop 172 | . 3 . 40 3 36 3 16 13 19 5 9 11 6 4 1 . . . 3 Fire 749 | 10 20 5 66 8 118 19 139 78 44 70 31 114 6 6 3 . . . 12 Melee 2 | . . . . . . . . 2 . . . . . . . . . . . Ram 3 | . . . . . . . . . . . . 3 . . . . . . . Kick . | . . . . . . . . . . . . . . . . . . . . Crush . | . . . . . . . . . . . . . . . . . . . . Escape Stasis 38 | . . . . . . . . 30 . . . 8 . . . . . . . Rewire 25 | . . . . . . . . . . 1 . 24 . . . . . . . Trap . | . . . . . . . . . . . . . . . . . . . . Miscellaneous . | . . . . . . . . . . . . . . . . . . . . Route ------- -11/Scrapyard -10/Materials (discovered 2 exits: *Mat / *Min) -10/Mines -9/Materials (discovered 2 exits: *Mat / *Min) -9/Mines (discovered 3 exits: *Mat x2 / *Exi) -9/Exiles -8/Mines -8/Materials (discovered 5 exits: *Fac x3 / *Sto / Gar) -8/Garrison (discovered 4 exits: *Mat x4) -8/Materials (discovered 3 exits: Sto x2 / Gar) -8/Garrison -7/Factory -7/Garrison (discovered 3 exits: *Fac x3) -6/Factory -6/Lower Caves -6/Lower Caves (discovered 2 exits: *Fac / *Dat) -6/Data Miner -5/Proximity Caves -5/Factory (discovered 2 exits: Fac / DSF) -5/DSF (discovered 1 exit: *Fac) History --------- Turn | Location | Event 4 | -11/Scrapyard | Discovered new exit (range 15) 190 | -11/Scrapyard | Entered Materials 230 | -10/Materials | Identified exit to Mines 305 | -10/Materials | Build established: Mutant 490 | -10/Materials | Discovered new exit (range 16) 810 | -10/Materials | Entered Mines 811 | -10/Mines | Assembled infested the area 816 | -10/Mines | Assisted by a Guerilla fighting off Assembled 1032 | -10/Mines | Discovered new exit (range 4) 1038 | -10/Mines | Entered Materials 1038 | -9/Materials | Evolved 2 slots: Utility x2 1659 | -9/Materials | Discovered new exit (range 9) 1929 | -9/Materials | Build established: Scavenger-Mutant 2283 | -9/Materials | Discovered new exit (range 7) 2699 | -9/Materials | Entered Mines 2740 | -9/Mines | Met a Derelict bent on vengeance 2756 | -9/Mines | Met a Derelict who couldn't figure out how to use a Trap Extractor 2809 | -9/Mines | Discovered new exit (range 9) 2816 | -9/Mines | Discovered new exit (range 10) 3629 | -9/Mines | Found a hidden stash of uninstalled traps 3659 | -9/Mines | Learned location of Storage (-8) 4164 | -9/Mines | Deemed a non-threat by the Exiles lab entrance 4164 | -9/Mines | Discovered new exit (range 5) 4174 | -9/Mines | Entered Exiles 4174 | -9/Exiles | Accompanied by 1 ally 4204 | -9/Exiles | Led the pair of lost Derelicts to a safe place 4234 | -9/Exiles | Met 8R-AWN 4273 | -9/Exiles | Met EX-HEX 4398 | -9/Exiles | Met EX-DEC 4438 | -9/Exiles | Learned location of Zion (-7) 4789 | -9/Exiles | Met EX-BIN 4823 | -9/Exiles | Aligned with FarCom system 4825 | -9/Exiles | Given EX-Vault access code 4881 | -9/Exiles | Opened EX-Vault 4897 | -9/Exiles | Found Chronowheel 4910 | -9/Exiles | Found Supersonic Drone Bay 4959 | -9/Exiles | Warned to stay clear of 0b10 Research branches 5817 | -9/Exiles | Attacked by the Exiles 5992 | -9/Exiles | Lost 6 parts (2n2u2w) 6004 | -9/Exiles | Core integrity fell below 50% 6011 | -9/Exiles | Destroyed 8R-AWN 6032 | -9/Exiles | Found Prototype Ballistic Gun 6033 | -9/Exiles | Identified 8R-AWN's Boregun 6040 | -9/Exiles | Found Prototype Protection 6041 | -9/Exiles | Identified 8R-AWN's Armor/EX 6060 | -9/Exiles | Found Prototype Processor 6207 | -9/Exiles | Build established: Mutant 6486 | -9/Exiles | Destroyed EX-DEC 6520 | -9/Exiles | Destroyed EX-BIN 6567 | -9/Exiles | Destroyed EX-HEX 7084 | -9/Exiles | Found Lightpack 2.0 7304 | -9/Exiles | Found Prototype Processor 7478 | -9/Exiles | Found Deploy-a-Sentry 7989 | -9/Exiles | Discovered new exit (range 14) 8023 | -9/Exiles | Stole four prototypes: Lightpack 2.0, Supersonic Drone Bay, Chronowheel, Deploy-a-Sentry 8023 | -9/Exiles | Entered Mines 8043 | -8/Mines | Discovered new exit (range 7) 8044 | -8/Mines | 99-TNT came to Exiles' defense 8075 | -8/Mines | Build established: Scavenger-Mutant 8076 | -8/Mines | Core integrity fell below 20% 8133 | -8/Mines | Found Prototype Launcher 8148 | -8/Mines | Found Prototype Device 8172 | -8/Mines | Entered Materials 8172 | -8/Materials | Evolved 2 slots: Utility x2 8173 | -8/Materials | Identified exit to Factory 8239 | -8/Materials | Identified Exp. Shock Absorption System 8584 | -8/Materials | Identified exit to Storage 9159 | -8/Materials | Build established: Mutant 9832 | -8/Materials | Learned 2 Lower Caves zone layouts 9899 | -8/Materials | Learned Factory trap positions 9951 | -8/Materials | Identified exit to Garrison 9951 | -8/Materials | Entered Garrison 10061 | -8/Garrison | Triggered checkpoint 10095 | -8/Garrison | Garrison Relay disabled 10128 | -8/Garrison | Discovered new exit (range 61) 10128 | -8/Garrison | Discovered new exit (range 48) 10128 | -8/Garrison | Discovered new exit (range 63) 10128 | -8/Garrison | Discovered new exit (range 68) 10241 | -8/Garrison | Triggered checkpoint 10244 | -8/Garrison | Triggered checkpoint 10301 | -8/Garrison | Destroyed 9 combat bots 10367 | -8/Garrison | Installed Relay Interface Framework 10487 | -8/Garrison | Triggered checkpoint 10545 | -8/Garrison | Triggered checkpoint 10672 | -8/Garrison | Expanded RIF knowledge: Structural Interface 10723 | -8/Garrison | Build established: Scavenger-Mutant 10799 | -8/Garrison | Triggered checkpoint 10850 | -8/Garrison | Garrison Relay disabled 11081 | -8/Garrison | Triggered checkpoint 11105 | -8/Garrison | Garrison Relay disabled 11129 | -8/Garrison | Garrison Relay disabled 11134 | -8/Garrison | Build established: Bothacker-Mutant 11183 | -8/Garrison | Triggered checkpoint 11244 | -8/Garrison | Entered Materials 11244 | -8/Materials | Accompanied by 3 allies 11312 | -8/Materials | Identified 99-TNT's Nukerbomber 11364 | -8/Materials | Lost 3 allies 12303 | -8/Materials | Identified exit to Garrison 12303 | -8/Materials | Entered Garrison 12551 | -8/Garrison | Triggered checkpoint 12555 | -8/Garrison | Core integrity fell below 50% 12584 | -8/Garrison | Garrison Relay disabled 12661 | -8/Garrison | Lost 3 parts (2u1w) 12705 | -8/Garrison | Triggered checkpoint 12757 | -8/Garrison | Triggered checkpoint 12780 | -8/Garrison | Garrison Relay disabled 12810 | -8/Garrison | Core integrity fell below 20% 12822 | -8/Garrison | Discovered exit to Factory (range 10) 12857 | -8/Garrison | Expanded RIF knowledge: Hotswap 12903 | -8/Garrison | Phase Generator disabled 12996 | -8/Garrison | Build established: Scavenger-Mutant 13101 | -8/Garrison | Entered Factory 13101 | -7/Factory | Evolved 2 slots: Utility x2 13102 | -7/Factory | Loaded intel: 135 trap records 13305 | -7/Factory | Build established: Mutant 13669 | -7/Factory | Build established: Scavenger-Mutant 14081 | -7/Factory | Identified exit to Garrison 14081 | -7/Factory | Entered Garrison 14112 | -7/Garrison | Expanded RIF knowledge: Patrol Navigation 14175 | -7/Garrison | Triggered checkpoint 14454 | -7/Garrison | Triggered checkpoint 14508 | -7/Garrison | Garrison Relay disabled 14530 | -7/Garrison | Build established: Mutant 14905 | -7/Garrison | Triggered checkpoint 14905 | -7/Garrison | Triggered checkpoint 14908 | -7/Garrison | Identified Exp. Core Analyzer 14923 | -7/Garrison | Triggered checkpoint 14962 | -7/Garrison | Destroyed 19 combat bots 14969 | -7/Garrison | Lost 4 parts (1p1n2u) 15899 | -7/Garrison | Discovered new exit (range 14) 15921 | -7/Garrison | Rescued a captive Derelict 15929 | -7/Garrison | Core integrity fell below 50% 15956 | -7/Garrison | Lost 3 parts (1u2w) 16106 | -7/Garrison | Garrison Relay disabled 16249 | -7/Garrison | Build established: Scavenger-Mutant 16347 | -7/Garrison | Discovered new exit (range 12) 16480 | -7/Garrison | Triggered checkpoint 16523 | -7/Garrison | Triggered checkpoint 16805 | -7/Garrison | Triggered checkpoint 16817 | -7/Garrison | Triggered checkpoint 16859 | -7/Garrison | Build established: Bothacker-Mutant 16889 | -7/Garrison | Garrison Relay disabled 17019 | -7/Garrison | Discovered new exit (range 7) 17057 | -7/Garrison | Triggered checkpoint 17132 | -7/Garrison | Lost 4 allies 17137 | -7/Garrison | Lost 4 parts (1p1n1u1w) 17755 | -7/Garrison | Entered Factory 17755 | -6/Factory | Evolved 2 slots: Utility x2 17787 | -6/Factory | Found Launcher Loader 17795 | -6/Factory | Found Launcher Loader 17883 | -6/Factory | Discovered new exit (range 8) 18015 | -6/Factory | Identified exit to Lower Caves 18023 | -6/Factory | Entered Lower Caves 18023 | -6/Lower Caves | Spotted 5T-JOJ(f) 18023 | -6/Lower Caves | Spotted O0-GZ8(f) 18023 | -6/Lower Caves | Spotted YE-5M9(f) 18024 | -6/Lower Caves | Chronowheel stolen by Master Thief 18024 | -6/Lower Caves | Supersonic Drone Bay stolen by Master Thief 18025 | -6/Lower Caves | Encountered a Master Thief 18025 | -6/Lower Caves | Encountered a Master Thief 18025 | -6/Lower Caves | Encountered a Master Thief 18025 | -6/Lower Caves | Destroyed YE-5M9(f) 18027 | -6/Lower Caves | Destroyed O0-GZ8(f) 18027 | -6/Lower Caves | Destroyed 5T-JOJ(f) 18050 | -6/Lower Caves | Learned 8 Factory zone layouts 18056 | -6/Lower Caves | Encountered a Warlord checkpoint 18319 | -6/Lower Caves | Build established: Hauler-Mutant 18400 | -6/Lower Caves | Discovered new exit (range 10) 18449 | -6/Lower Caves | Identified exit to Lower Caves 18450 | -6/Lower Caves | Entered another Lower Caves area 18460 | -6/Lower Caves | Discovered new exit (range 12) 18500 | -6/Lower Caves | DAS Turret deployed 18658 | -6/Lower Caves | Learned location of 1 exit from Factory 18659 | -6/Lower Caves | Learned Factory emergency access door positions 18672 | -6/Lower Caves | Discovered new exit (range 5) 18676 | -6/Lower Caves | Identified exit to Data Miner 18676 | -6/Lower Caves | Entered Data Miner 18676 | -6/Data Miner | Discovered new exit (range 6) 18694 | -6/Data Miner | Met Data Miner 18709 | -6/Data Miner | Learned location of Section 7 (-2) 18709 | -6/Data Miner | Acquired the access code to Warlord's prototype stash 18726 | -6/Data Miner | Received God Mode back door access code from Data Miner 18745 | -6/Data Miner | Identified exit to Proximity Caves 18746 | -6/Data Miner | Entered Proximity Caves 18759 | -5/Proximity Caves | Attracted the attention of an 0b10 checkpoint 18831 | -5/Proximity Caves | Discovered new exit (range 14) 18835 | -5/Proximity Caves | Identified exit to Factory 18842 | -5/Proximity Caves | Entered Factory 18842 | -5/Factory | Evolved 2 slots: Utility x2 18843 | -5/Factory | Identified exit to Factory 18848 | -5/Factory | Identified exit to DSF 18848 | -5/Factory | Entered DSF 18882 | -5/DSF | Additional patrols routed to DSF 18952 | -5/DSF | Core integrity fell below 50% 18968 | -5/DSF | Core integrity fell below 20% 18973 | -5/DSF | Discovered exit to Factory (range 15) 18974 | -5/DSF | Destroyed by C-35 Carver with Carbide Saw Last Messages --------------- 18945_ Gyrokinetic Inverter severed. 18951_ Relay Coupler [NC] severed. 18954_ Imp. Target Analyzer severed. 18959_ Lightpack 2.0 destroyed. 18959_ Dropped Launcher Loader. 18961_ ALERT: Suspicious intruders detected, dispatching Cutter reinforcements to area. 18963_ Penetrated by Slug. 18966_ The unstable cave ceiling collapses. 18966_ Adv. Signal Interpreter severed. 18966_ Slug penetrates Earth. 18966_ Slug penetrates C-35 Carver. 18966_ Penetrated by Slug. 18968_ Knocked back. 18968_ C-35 Carver knocked back. 18971_ Acquired Field Propulsion Drive. 18972_ Penetrated by Slug. 18973_ Slug penetrates Wall. 18973_ EXIT=FOUND: FACTORY 18974_ RIF reveals location of hidden door. Map ----- +----------------------------------------------------+ | | | | | | | | | | | | | | | | | | | | | | | | | | | | | | | | | ???????????????????????????????????????????????? | | ???????????????????????????????????????????????? | | ???????????????????????????????????????????????? | | ???????##??????????????????????????????????????? | | ???????""#?????????????????????????????????????? | | ???????#"#?????????????????????????????????????? | | ????####"##???????#########????????????????????? | | ????#"""""######### [[[!!#?###????????????????? | | ????#"""""## # # [[[!!#!!!# ##""??????????? | | ?#"##"" c@ <""???????? | | ?#""""" c ""???????? | | ??###"" ## # ### c ### # ## ""???????? | | ????### ### # ##; % ### #????? ?????????? | | ?????## ########## #?+##????? #????????? | | ?????# #?## c #????????? ????????? | | ?????#! #?# +????????? ????????? | | ?????## ###?## ###????????# ##???????? | | ?????#! !!#?# !#???????? #???????? | | ?????#! ^! #?## ! #???????? #???????? | | ?????#! !!#?# #???????? ????????? | | ????### ###### ########## ###??????? | | ????# ##!!!# # #!!!#!!!## !!#??????? | | ???## ## !! # !!!#!!!## !!#??????? | | ???#" #??????? | | ????#^ % !]! #??????? | | ????# % % =/=!! !!!! #??????? | | ????# ##!!!# ]] #%! !#***##!!]]#??????? | | ????# ##!!!#]]] # H # !!#***##!!]]#??????? | | ????############# # #########!!###??????? | | ???????????????# # # ?????# !!!!#???????? | | ???????????????## ??????# !!! #???????? | | ????????????????###! ??????# #???????? | | ??????????????????### #??????### ##???????? | | ??????????????????# #??????#// #???????? | +----------------------------------------------------+ Best States ------------- Heat Dissipation 53 Coolant Potential 65 Energy Generation 25 Energy Capacity 340 Matter Stores 443 Matter Capacity 800 Sight Range 16 Robot Scan Range 15 Terrain Scan Range 20 Terrain Scan Density 10 Jamming Range 16 Additional Mass Support 12 Armor Coverage 900 Resistance: EX 90 Core Shielding 30 Weapon Shielding 90 Phase Shifting 5 Evasion (%) 63 Targeting Accuracy 8 Target Analysis 6 Core Analysis 8 Armor Integrity Analysis 40 Recoil Reduction 2 Matter Filtering 30 Offensive Hacking 10 Relay Coupler Types 3 Relay Coupler Value 74 Authchip Count 2 Trap Extractor Capacity 6 Item Schematics ----------------- Lgt. Treads | -9/Materials | Scanalyzed Tractor Beam | -9/Materials | Scanalyzed Shotgun | -7/Factory | Extracted Hpw. Field Laser | -7/Factory | Extracted Imp. Salvage Targeting Computer | -7/Factory | Extracted Enh. Autogun | -7/Factory | Extracted Med. Storage Unit | -7/Factory | Extracted Spear | -7/Factory | Extracted Reaction Control System | -7/Factory | Extracted Greatsword | -7/Factory | Extracted Axe | -7/Factory | Extracted Imp. Cooling System | -7/Factory | Extracted Combat Drone Bay | -6/Data Miner | Free Lgt. Regenerative Plating | -6/Data Miner | Free Cld. Gravmag System | -6/Data Miner | Free Prc. Matter Filter | -6/Data Miner | Free Imp. KE Penetrator | -6/Data Miner | Free Myomer Leg | -6/Data Miner | Free Imp. Phase Shifter | -6/Data Miner | Free Adv. Datajack | -6/Data Miner | Free Matter Neutralizer | -6/Data Miner | Free Antimatter Reactor | -6/Data Miner | Free Robot Schematics ------------------ L-41 Fighter | -7/Factory | Downloaded B-60 Warrior | -6/Data Miner | Free A-15 Conveyor | -6/Data Miner | Free G-50 Soldier | -6/Data Miner | Free X-67 Chaingunner | -6/Data Miner | Free L-61 Swordsman | -6/Data Miner | Free R-10 Processor | -6/Data Miner | Free Fabricated ------------ Nothing Repaired ---------- Nothing Alien Tech Used ----------------- None Achievements -------------- None Challenges ------------ None Game ------ Seed RiotArcsightRegenerator Manual? 0 Play Time 02:41:38 Cumulative 308.4 hours Start 2025.09.19 @ 18:44:14 End 2025.09.20 @ 00:15:07 Sessions 5 Manual Loads 0 Difficulty Rogue Special Mode None Game No. 426 Rogue 426 Adventurer 0 Explorer 0 Win Type - Total 10 Types 5/0/1/2/1/0/1/0/0/0 Lore% 86 Gallery% 81 Achievement% 67 Wizard Run 0 Options --------- Layout 0 ASCII 0 Keyboard 0 Movement Mouse Keybinds 0 Fullscreen 1 Font 24/Tamsyn Map View 76x50 Zoom Use 0% Tactical HUD 1 Map Filters NONE Filters NONE Steam 1 RUN: ec86d18f-b57b-4f75-adbe-1f091afa1ce4